[Event "*** Titled Tuesday Blitz"]
[Site "Chess.com"]
[Date "2020.04.07"]
[Round "2"]
[White "Kaua18"]
[Black "guillembaches"]
[Result "0-1"]
[WhiteElo "2156"]
[BlackElo "2443"]
[TimeControl "180+1"]
[EndTime "13:19:49 PDT"]
[Termination "guillembaches won on time"]

1. e4 {[%clk 0:03:00.9]} 1... c5 {[%clk 0:03:00.1]} 2. Nf3 {[%clk 0:03:01.1]}
2... d6 {[%clk 0:03:00.5]} 3. d4 {[%clk 0:03:01.5]} 3... cxd4 {[%clk 0:03:01.4]}
4. Nxd4 {[%clk 0:03:01.7]} 4... Nf6 {[%clk 0:03:01.9]} 5. Nc3 {[%clk 0:03:02.3]}
5... a6 {[%clk 0:03:02.3]} 6. Be2 {[%clk 0:03:02.7]} 6... e5 {[%clk 0:03:02.2]}
7. Nf3 {[%clk 0:03:03]} 7... Be7 {[%clk 0:03:01.9]} 8. a4 {[%clk 0:03:03.2]}
8... Be6 {[%clk 0:03:01.2]} 9. O-O {[%clk 0:03:01.9]} 9... O-O {[%clk
0:03:00.5]} 10. Bg5 {[%clk 0:03:01.3]} 10... Nbd7 {[%clk 0:03:00.6]} 11. h3
{[%clk 0:02:57.1]} 11... Rc8 {[%clk 0:02:55.4]} 12. Qd2 {[%clk 0:02:56.1]} 12...
Rxc3 {[%clk 0:02:50.4]} 13. Bxf6 {[%clk 0:02:31.8]} 13... Nxf6 {[%clk
0:02:41.8]} 14. Qxc3 {[%clk 0:02:28.9]} 14... Nxe4 {[%clk 0:02:41.5]} 15. Qb4
{[%clk 0:02:24]} 15... Nc5 {[%clk 0:02:34.4]} 16. Rad1 {[%clk 0:02:18.8]} 16...
Qc7 {[%clk 0:02:31.1]} 17. Bc4 {[%clk 0:02:15.5]} 17... a5 {[%clk 0:02:17.4]}
18. Qb5 {[%clk 0:01:23.9]} 18... Bd7 {[%clk 0:02:11.5]} 19. Bxf7+ {[%clk
0:01:23.9]} 19... Rxf7 {[%clk 0:02:06.7]} 20. Qc4 {[%clk 0:01:24]} 20... Be6
{[%clk 0:01:50.5]} 21. Qc3 {[%clk 0:01:15.9]} 21... Qc6 {[%clk 0:01:41.2]} 22.
Qxa5 {[%clk 0:00:37.8]} 22... Rxf3 {[%clk 0:01:31.8]} 23. gxf3 {[%clk
0:00:35.4]} 23... Qxf3 {[%clk 0:01:31.6]} 24. Qc3 {[%clk 0:00:25.6]} 24... Qxc3
{[%clk 0:01:25.9]} 25. bxc3 {[%clk 0:00:26.5]} 25... Nxa4 {[%clk 0:01:25.9]} 26.
Rb1 {[%clk 0:00:26]} 26... Bd5 {[%clk 0:01:15.8]} 27. c4 {[%clk 0:00:23.2]}
27... Bc6 {[%clk 0:01:14]} 28. Rfe1 {[%clk 0:00:21.5]} 28... Kf7 {[%clk
0:01:07.8]} 29. Rb3 {[%clk 0:00:19.5]} 29... Nc5 {[%clk 0:01:05.6]} 30. Ra3
{[%clk 0:00:19.6]} 30... Ne6 {[%clk 0:01:04.1]} 31. Rae3 {[%clk 0:00:19.4]}
31... Nd4 {[%clk 0:01:01.6]} 32. Rc1 {[%clk 0:00:13.6]} 32... Bg5 {[%clk
0:00:59.8]} 33. c3 {[%clk 0:00:12.7]} 33... Bxe3 {[%clk 0:00:58.8]} 34. Rd1
{[%clk 0:00:08.1]} 34... Nf3+ {[%clk 0:00:51.2]} 35. Kf1 {[%clk 0:00:08.1]}
35... Bc5 {[%clk 0:00:51.1]} 36. Ra1 {[%clk 0:00:06.1]} 36... h5 {[%clk
0:00:49.3]} 37. Ke2 {[%clk 0:00:06.4]} 37... g5 {[%clk 0:00:44.1]} 38. Rb1
{[%clk 0:00:05.3]} 38... Ke6 {[%clk 0:00:38.4]} 39. Ra1 {[%clk 0:00:04.5]} 39...
Kf5 {[%clk 0:00:38.1]} 40. Ra8 {[%clk 0:00:03.8]} 40... g4 {[%clk 0:00:35.6]}
41. Rh8 {[%clk 0:00:02.9]} 41... Kg5 {[%clk 0:00:34]} 42. hxg4 {[%clk
0:00:02.8]} 42... Kxg4 {[%clk 0:00:33.4]} 43. Rg8+ {[%clk 0:00:03.7]} 43... Kf5
{[%clk 0:00:31.6]} 44. Kf1 {[%clk 0:00:02.4]} 44... h4 {[%clk 0:00:30.3]} 45.
Kg2 {[%clk 0:00:02.3]} 45... Ng5+ {[%clk 0:00:28.5]} 46. Kh2 {[%clk 0:00:02.4]}
46... Bxf2 {[%clk 0:00:25.2]} 47. Rf8+ {[%clk 0:00:02.1]} 47... Kg4 {[%clk
0:00:22.7]} 48. Rf4+ {[%clk 0:00:01.9]} 48... exf4 {[%clk 0:00:22.1]} 49. c5
{[%clk 0:00:01.2]} 49... Bg3+ {[%clk 0:00:22]} 0-1

[Event "*** Titled Tuesday Blitz"]
[Site "Chess.com"]
[Date "2020.04.07"]
[Round "2"]
[White "Angel_Hranitel_37"]
[Black "moro182"]
[Result "0-1"]
[WhiteElo "2330"]
[BlackElo "2682"]
[TimeControl "180+1"]
[EndTime "13:19:50 PDT"]
[Termination "moro182 won by resignation"]

1. d4 {[%clk 0:03:00.6]} 1... Nf6 {[%clk 0:02:58.3]} 2. Nf3 {[%clk 0:02:59.7]}
2... d5 {[%clk 0:02:58.2]} 3. c3 {[%clk 0:02:58.3]} 3... Nbd7 {[%clk 0:02:50.8]}
4. g3 {[%clk 0:02:58.1]} 4... g6 {[%clk 0:02:50.7]} 5. Bg2 {[%clk 0:02:58.6]}
5... Bg7 {[%clk 0:02:51.4]} 6. O-O {[%clk 0:02:59.1]} 6... O-O {[%clk 0:02:52]}
7. Bg5 {[%clk 0:02:57.9]} 7... b6 {[%clk 0:02:52.2]} 8. Qc1 {[%clk 0:02:58]}
8... Bb7 {[%clk 0:02:49.6]} 9. Bh6 {[%clk 0:02:57.9]} 9... c5 {[%clk 0:02:50.1]}
10. Bxg7 {[%clk 0:02:57.6]} 10... Kxg7 {[%clk 0:02:51]} 11. Rd1 {[%clk
0:02:51.3]} 11... Rc8 {[%clk 0:02:50.7]} 12. e3 {[%clk 0:02:47.6]} 12... Qc7
{[%clk 0:02:50.6]} 13. a4 {[%clk 0:02:45.5]} 13... e5 {[%clk 0:02:47.2]} 14.
dxe5 {[%clk 0:02:39.8]} 14... Nxe5 {[%clk 0:02:48.1]} 15. Nxe5 {[%clk
0:02:40.7]} 15... Qxe5 {[%clk 0:02:47.9]} 16. c4 {[%clk 0:02:13.7]} 16... Bc6
{[%clk 0:02:27.4]} 17. cxd5 {[%clk 0:02:10.3]} 17... Bxd5 {[%clk 0:02:23.7]} 18.
Qc3 {[%clk 0:02:06.9]} 18... Qxc3 {[%clk 0:02:18.8]} 19. Nxc3 {[%clk 0:02:07.8]}
19... Bb3 {[%clk 0:02:19.3]} 20. Rd6 {[%clk 0:01:36.7]} 20... Rfd8 {[%clk
0:02:15.6]} 21. Rxd8 {[%clk 0:01:30.3]} 21... Rxd8 {[%clk 0:02:16.5]} 22. Ra3
{[%clk 0:01:30.5]} 22... Bc4 {[%clk 0:02:15.9]} 23. Bf1 {[%clk 0:01:25]} 23...
Bxf1 {[%clk 0:02:09.8]} 24. Kxf1 {[%clk 0:01:25.9]} 24... Rd2 {[%clk 0:02:10.7]}
25. Ra2 {[%clk 0:00:43.9]} 25... Ng4 {[%clk 0:01:34.3]} 26. b3 {[%clk
0:00:33.3]} 26... Nxh2+ {[%clk 0:01:25.3]} 27. Kg2 {[%clk 0:00:28.7]} 27... Rxa2
{[%clk 0:01:25.3]} 28. Nxa2 {[%clk 0:00:29.6]} 28... Ng4 {[%clk 0:01:26.1]} 29.
Nc3 {[%clk 0:00:26.9]} 29... Ne5 {[%clk 0:01:25]} 30. Nb5 {[%clk 0:00:24.9]}
30... a5 {[%clk 0:01:23.2]} 31. Nc7 {[%clk 0:00:23.6]} 31... c4 {[%clk
0:01:11.5]} 32. bxc4 {[%clk 0:00:22.8]} 32... Nxc4 {[%clk 0:01:12.4]} 33. Nd5
{[%clk 0:00:23.2]} 33... f5 {[%clk 0:01:12.9]} 34. f3 {[%clk 0:00:12.7]} 34...
Kf7 {[%clk 0:01:12.4]} 35. e4 {[%clk 0:00:13.3]} 35... fxe4 {[%clk 0:01:09.1]}
36. fxe4 {[%clk 0:00:14.2]} 36... Ke6 {[%clk 0:01:10]} 37. Kf3 {[%clk
0:00:14.8]} 37... Ke5 {[%clk 0:01:09.8]} 38. Nc3 {[%clk 0:00:09.6]} 38... h5
{[%clk 0:01:08.5]} 39. Nd5 {[%clk 0:00:06.5]} 39... g5 {[%clk 0:01:08.1]} 40.
Nc3 {[%clk 0:00:05.9]} 40... Kd4 {[%clk 0:01:08.4]} 41. Nb5+ {[%clk 0:00:04.9]}
41... Kc5 {[%clk 0:01:08.6]} 42. Nc7 {[%clk 0:00:04.3]} 42... Kb4 {[%clk
0:01:08.4]} 43. Ne6 {[%clk 0:00:04.6]} 43... Kxa4 {[%clk 0:01:05.2]} 44. Nxg5
{[%clk 0:00:04.8]} 44... Kb3 {[%clk 0:01:04.2]} 45. Nf7 {[%clk 0:00:03]} 45...
a4 {[%clk 0:01:03.6]} 46. e5 {[%clk 0:00:03.9]} 46... Nxe5+ {[%clk 0:00:51]} 47.
Nxe5 {[%clk 0:00:04.8]} 47... a3 {[%clk 0:00:51.9]} 48. Nd3 {[%clk 0:00:02.5]}
48... a2 {[%clk 0:00:52.5]} 49. Nc1+ {[%clk 0:00:03.1]} 49... Ka3 {[%clk
0:00:52.9]} 50. Nxa2 {[%clk 0:00:04]} 50... Kxa2 {[%clk 0:00:53.8]} 51. Kf4
{[%clk 0:00:02.6]} 51... b5 {[%clk 0:00:53.8]} 52. Kg5 {[%clk 0:00:03.5]} 52...
b4 {[%clk 0:00:54.3]} 53. g4 {[%clk 0:00:04.3]} 53... b3 {[%clk 0:00:55]} 54.
gxh5 {[%clk 0:00:05.2]} 54... b2 {[%clk 0:00:54.9]} 55. Kg6 {[%clk 0:00:05.4]}
55... b1=Q+ {[%clk 0:00:54.4]} 56. Kg7 {[%clk 0:00:06.3]} 56... Qb7+ {[%clk
0:00:54.2]} 57. Kg8 {[%clk 0:00:06.4]} 57... Qd5+ {[%clk 0:00:53.5]} 58. Kg7
{[%clk 0:00:06.2]} 58... Qxh5 {[%clk 0:00:54.4]} 0-1

[Event "*** Titled Tuesday Blitz"]
[Site "Chess.com"]
[Date "2020.04.07"]
[Round "2"]
[White "Fins0905"]
[Black "Harry_Rakkel"]
[Result "1-0"]
[WhiteElo "2765"]
[BlackElo "2513"]
[TimeControl "180+1"]
[EndTime "13:19:52 PDT"]
[Termination "Fins0905 won on time"]

1. e4 {[%clk 0:03:00.9]} 1... c5 {[%clk 0:02:59.5]} 2. Nf3 {[%clk 0:03:00.2]}
2... e6 {[%clk 0:02:59.6]} 3. d4 {[%clk 0:03:00.1]} 3... cxd4 {[%clk 0:02:59.5]}
4. Nxd4 {[%clk 0:03:01]} 4... Nc6 {[%clk 0:02:59.9]} 5. g3 {[%clk 0:02:58.2]}
5... Bc5 {[%clk 0:02:54.9]} 6. Nb3 {[%clk 0:02:56.5]} 6... Bb6 {[%clk
0:02:52.7]} 7. Bg2 {[%clk 0:02:56.4]} 7... h5 {[%clk 0:02:49.7]} 8. Na3 {[%clk
0:02:49.1]} 8... h4 {[%clk 0:02:37.8]} 9. Nc4 {[%clk 0:02:48]} 9... Bc7 {[%clk
0:02:33.6]} 10. Nd6+ {[%clk 0:02:38.6]} 10... Bxd6 {[%clk 0:02:32.6]} 11. Qxd6
{[%clk 0:02:37.6]} 11... Qe7 {[%clk 0:02:28.1]} 12. Bf4 {[%clk 0:02:33.3]} 12...
e5 {[%clk 0:02:24.1]} 13. Qxe7+ {[%clk 0:02:32.2]} 13... Ngxe7 {[%clk 0:02:25]}
14. Be3 {[%clk 0:02:30.5]} 14... b6 {[%clk 0:02:13]} 15. O-O-O {[%clk
0:02:28.2]} 15... Ba6 {[%clk 0:02:04.5]} 16. f4 {[%clk 0:02:09.1]} 16... Rc8
{[%clk 0:01:53.5]} 17. a3 {[%clk 0:01:58.7]} 17... Rc7 {[%clk 0:01:30.7]} 18.
Rd6 {[%clk 0:01:34.3]} 18... f6 {[%clk 0:01:22.5]} 19. f5 {[%clk 0:01:28.7]}
19... hxg3 {[%clk 0:01:19.2]} 20. hxg3 {[%clk 0:01:28.2]} 20... Rxh1+ {[%clk
0:01:19.6]} 21. Bxh1 {[%clk 0:01:29.1]} 21... Nd8 {[%clk 0:01:03.3]} 22. Bf3
{[%clk 0:01:20.3]} 22... Nb7 {[%clk 0:00:59.7]} 23. Rd2 {[%clk 0:01:18.3]} 23...
Bc4 {[%clk 0:00:54.7]} 24. Kb1 {[%clk 0:01:14.6]} 24... Bxb3 {[%clk 0:00:48.3]}
25. cxb3 {[%clk 0:01:14.4]} 25... Na5 {[%clk 0:00:48.4]} 26. Ka2 {[%clk
0:01:11.9]} 26... Nec6 {[%clk 0:00:40.1]} 27. g4 {[%clk 0:01:05.3]} 27... Ke7
{[%clk 0:00:31.2]} 28. g5 {[%clk 0:01:01.7]} 28... Rc8 {[%clk 0:00:30.9]} 29.
Be2 {[%clk 0:00:49.1]} 29... Rh8 {[%clk 0:00:24]} 30. b4 {[%clk 0:00:47.4]}
30... Nb7 {[%clk 0:00:22.2]} 31. Bc4 {[%clk 0:00:41.5]} 31... Rh3 {[%clk
0:00:20.4]} 32. gxf6+ {[%clk 0:00:33.9]} 32... gxf6 {[%clk 0:00:19.6]} 33. Bg1
{[%clk 0:00:33.8]} 33... Nd6 {[%clk 0:00:19.2]} 34. Bd5 {[%clk 0:00:33.8]} 34...
Nb5 {[%clk 0:00:16.1]} 35. Rg2 {[%clk 0:00:30.5]} 35... Ncd4 {[%clk 0:00:10.7]}
36. Rg7+ {[%clk 0:00:28.5]} 36... Kd8 {[%clk 0:00:09.2]} 37. Rf7 {[%clk
0:00:23]} 37... Ne2 {[%clk 0:00:08.7]} 38. Bf2 {[%clk 0:00:18.3]} 38... Nc1+
{[%clk 0:00:08.4]} 39. Kb1 {[%clk 0:00:17.9]} 39... Nd3 {[%clk 0:00:09.3]} 40.
Bc4 {[%clk 0:00:15.8]} 40... Rh1+ {[%clk 0:00:07.7]} 41. Kc2 {[%clk 0:00:13.4]}
41... Nxf2 {[%clk 0:00:07.6]} 42. Bxb5 {[%clk 0:00:13.8]} 42... Nxe4 {[%clk
0:00:07.5]} 43. Rxd7+ {[%clk 0:00:14]} 43... Kc8 {[%clk 0:00:07.7]} 44. Rxa7
{[%clk 0:00:11.5]} 44... Rh2+ {[%clk 0:00:07.3]} 45. Kb3 {[%clk 0:00:07.6]}
45... Nd6 {[%clk 0:00:07.1]} 46. Bc6 {[%clk 0:00:06]} 46... Rh3+ {[%clk
0:00:05.5]} 47. Ka2 {[%clk 0:00:05.6]} 47... e4 {[%clk 0:00:05.3]} 48. Re7
{[%clk 0:00:04.4]} 48... Kd8 {[%clk 0:00:03]} 49. Re6 {[%clk 0:00:04.4]} 49...
Kc7 {[%clk 0:00:03.3]} 50. Bxe4 {[%clk 0:00:04.5]} 50... Nxe4 {[%clk 0:00:03.1]}
51. Rxe4 {[%clk 0:00:04.5]} 51... Rf3 {[%clk 0:00:04]} 52. Re7+ {[%clk
0:00:03.1]} 1-0

[Event "*** Titled Tuesday Blitz"]
[Site "Chess.com"]
[Date "2020.04.07"]
[Round "2"]
[White "gvanna"]
[Black "1random"]
[Result "0-1"]
[WhiteElo "2455"]
[BlackElo "2727"]
[TimeControl "180+1"]
[EndTime "13:19:52 PDT"]
[Termination "1random won on time"]

1. e4 {[%clk 0:03:00.6]} 1... d5 {[%clk 0:02:57.4]} 2. exd5 {[%clk 0:03:00.4]}
2... Nf6 {[%clk 0:02:58.2]} 3. Nc3 {[%clk 0:03:00.2]} 3... Nxd5 {[%clk
0:02:58.5]} 4. Bc4 {[%clk 0:03:00.1]} 4... Nb6 {[%clk 0:02:59.4]} 5. Bb3 {[%clk
0:02:59]} 5... Nc6 {[%clk 0:02:50.9]} 6. Nge2 {[%clk 0:02:52.7]} 6... Bf5 {[%clk
0:02:48.3]} 7. O-O {[%clk 0:02:50.6]} 7... e6 {[%clk 0:02:42]} 8. d4 {[%clk
0:02:49.9]} 8... Be7 {[%clk 0:02:38.5]} 9. Bf4 {[%clk 0:02:48.6]} 9... O-O
{[%clk 0:02:36.6]} 10. Qd2 {[%clk 0:02:45.9]} 10... Qd7 {[%clk 0:02:24.8]} 11.
Rad1 {[%clk 0:02:45]} 11... Rad8 {[%clk 0:02:25.1]} 12. Rfe1 {[%clk 0:02:32.1]}
12... Bf6 {[%clk 0:02:13.2]} 13. Nb5 {[%clk 0:02:19.7]} 13... Rc8 {[%clk
0:01:38]} 14. c4 {[%clk 0:02:11.5]} 14... a6 {[%clk 0:01:34.9]} 15. Nbc3 {[%clk
0:02:05.6]} 15... Na5 {[%clk 0:01:18.3]} 16. Ne4 {[%clk 0:01:25.5]} 16... Naxc4
{[%clk 0:01:14.2]} 17. Nxf6+ {[%clk 0:01:24.6]} 17... gxf6 {[%clk 0:01:15.1]}
18. Qc3 {[%clk 0:01:17.8]} 18... Nd6 {[%clk 0:01:04.4]} 19. Bh6 {[%clk
0:01:15.3]} 19... Rfd8 {[%clk 0:00:54.9]} 20. h4 {[%clk 0:01:14.2]} 20... Kh8
{[%clk 0:00:54.1]} 21. Ng3 {[%clk 0:01:08.3]} 21... Rg8 {[%clk 0:00:47.5]} 22.
Qf3 {[%clk 0:00:59.1]} 22... Rg6 {[%clk 0:00:44.4]} 23. Bf4 {[%clk 0:00:55.7]}
23... Bg4 {[%clk 0:00:40.8]} 24. Qc3 {[%clk 0:00:50.6]} 24... Bxd1 {[%clk
0:00:39]} 25. Rxd1 {[%clk 0:00:50]} 25... Nd5 {[%clk 0:00:37.8]} 26. Bxd5 {[%clk
0:00:43.7]} 26... exd5 {[%clk 0:00:37.9]} 27. h5 {[%clk 0:00:43.8]} 27... Rg4
{[%clk 0:00:36]} 28. Qf3 {[%clk 0:00:44.2]} 28... Rcg8 {[%clk 0:00:27.5]} 29.
Be5 {[%clk 0:00:32.6]} 29... h6 {[%clk 0:00:06.4]} 30. Bxf6+ {[%clk 0:00:26.7]}
30... Kh7 {[%clk 0:00:06.6]} 31. Qd3+ {[%clk 0:00:26.6]} 31... Ne4 {[%clk
0:00:04.8]} 32. Re1 {[%clk 0:00:10.3]} 32... Qe6 {[%clk 0:00:04.3]} 33. Be5
{[%clk 0:00:09]} 33... f5 {[%clk 0:00:04.5]} 34. Bxc7 {[%clk 0:00:07.8]} 34...
f4 {[%clk 0:00:02.4]} 35. f3 {[%clk 0:00:06.2]} 35... Rxg3 {[%clk 0:00:02.7]}
36. Bxf4 {[%clk 0:00:05.2]} 36... Rxg2+ {[%clk 0:00:02.7]} 37. Kf1 {[%clk
0:00:05.3]} 37... Qh3 {[%clk 0:00:03.1]} 38. Rxe4 {[%clk 0:00:00.9]} 38... Rg1+
{[%clk 0:00:02.9]} 0-1

[Event "*** Titled Tuesday Blitz"]
[Site "Chess.com"]
[Date "2020.04.07"]
[Round "2"]
[White "Misi_95"]
[Black "AliMentor20"]
[Result "1-0"]
[WhiteElo "2705"]
[BlackElo "2384"]
[TimeControl "180+1"]
[EndTime "13:19:53 PDT"]
[Termination "Misi_95 won by resignation"]

1. e4 {[%clk 0:03:00.9]} 1... c5 {[%clk 0:02:58.6]} 2. Nf3 {[%clk 0:03:00.4]}
2... Nc6 {[%clk 0:02:55.2]} 3. Bb5 {[%clk 0:02:59.7]} 3... g6 {[%clk 0:02:55]}
4. Bxc6 {[%clk 0:02:57.2]} 4... dxc6 {[%clk 0:02:55.9]} 5. d3 {[%clk 0:02:56.9]}
5... Bg7 {[%clk 0:02:56.2]} 6. h3 {[%clk 0:02:57]} 6... e5 {[%clk 0:02:55.1]} 7.
a3 {[%clk 0:02:56.1]} 7... Qe7 {[%clk 0:02:54.6]} 8. O-O {[%clk 0:02:52.8]} 8...
Nf6 {[%clk 0:02:46.5]} 9. b4 {[%clk 0:02:52.5]} 9... Nd7 {[%clk 0:02:43.7]} 10.
Nc3 {[%clk 0:02:39.7]} 10... Nf8 {[%clk 0:02:31.7]} 11. Be3 {[%clk 0:02:30.2]}
11... Ne6 {[%clk 0:02:29.8]} 12. bxc5 {[%clk 0:02:25.2]} 12... Nxc5 {[%clk
0:02:28.1]} 13. d4 {[%clk 0:02:11.5]} 13... exd4 {[%clk 0:02:22.1]} 14. Bxd4
{[%clk 0:02:12.4]} 14... Bxd4 {[%clk 0:02:18.4]} 15. Qxd4 {[%clk 0:02:13.3]}
15... O-O {[%clk 0:02:18.5]} 16. Rfd1 {[%clk 0:02:04.7]} 16... b6 {[%clk
0:02:09.5]} 17. Ne5 {[%clk 0:01:59.9]} 17... Bb7 {[%clk 0:01:53.8]} 18. Ng4
{[%clk 0:01:56]} 18... f6 {[%clk 0:01:53.4]} 19. Qd6 {[%clk 0:01:31.3]} 19...
Rae8 {[%clk 0:01:33.4]} 20. Qxe7 {[%clk 0:01:26.2]} 20... Rxe7 {[%clk
0:01:27.5]} 21. Rd6 {[%clk 0:01:25.3]} 21... Kg7 {[%clk 0:01:25.6]} 22. Rad1
{[%clk 0:01:06.8]} 22... h5 {[%clk 0:01:02.6]} 23. Ne3 {[%clk 0:01:04.2]} 23...
Nxe4 {[%clk 0:01:01.9]} 24. Nxe4 {[%clk 0:01:05.1]} 24... Rxe4 {[%clk
0:01:01.7]} 25. Rd7+ {[%clk 0:00:51.4]} 25... Rf7 {[%clk 0:01:01.2]} 26. Rd8
{[%clk 0:00:46.5]} 26... Ra4 {[%clk 0:00:18.7]} 27. Rb8 {[%clk 0:00:43.5]} 27...
Rxa3 {[%clk 0:00:16.6]} 28. Rdd8 {[%clk 0:00:43.7]} 28... f5 {[%clk 0:00:16.2]}
29. Rg8+ {[%clk 0:00:42.6]} 29... Kf6 {[%clk 0:00:15.9]} 30. Nc4 {[%clk
0:00:42.2]} 30... Ra1+ {[%clk 0:00:13.9]} 31. Kh2 {[%clk 0:00:42]} 31... Rd1
{[%clk 0:00:14.8]} 32. f4 {[%clk 0:00:40.6]} 32... Re1 {[%clk 0:00:12.7]} 33.
Nd6 {[%clk 0:00:39.5]} 33... Ree7 {[%clk 0:00:12.9]} 34. Nxf7 {[%clk 0:00:35.8]}
34... Rxf7 {[%clk 0:00:13.8]} 35. Rgf8 {[%clk 0:00:29.1]} 35... Ba6 {[%clk
0:00:08.5]} 36. Rxf7+ {[%clk 0:00:28.4]} 36... Kxf7 {[%clk 0:00:09.4]} 37. Ra8
{[%clk 0:00:29.3]} 37... Bc4 {[%clk 0:00:07.4]} 38. Rxa7+ {[%clk 0:00:30.2]}
38... Kf6 {[%clk 0:00:08]} 39. Rc7 {[%clk 0:00:29]} 39... Bd5 {[%clk 0:00:08]}
40. g3 {[%clk 0:00:29]} 40... b5 {[%clk 0:00:08.4]} 41. Kg1 {[%clk 0:00:28.9]}
41... h4 {[%clk 0:00:08.5]} 42. gxh4 {[%clk 0:00:28.5]} 42... b4 {[%clk
0:00:08.6]} 43. Kf2 {[%clk 0:00:28.4]} 43... Be4 {[%clk 0:00:08.7]} 44. Ke3
{[%clk 0:00:28.2]} 44... Ke6 {[%clk 0:00:08.3]} 45. Kd2 {[%clk 0:00:26.9]} 45...
Kd6 {[%clk 0:00:08.6]} 46. Rg7 {[%clk 0:00:26.9]} 46... c5 {[%clk 0:00:08.3]}
47. Rxg6+ {[%clk 0:00:26.8]} 47... Kd5 {[%clk 0:00:09.2]} 48. h5 {[%clk
0:00:26.9]} 48... c4 {[%clk 0:00:10.1]} 49. h6 {[%clk 0:00:26.7]} 49... b3
{[%clk 0:00:10.6]} 50. cxb3 {[%clk 0:00:26.8]} 50... cxb3 {[%clk 0:00:11.4]} 51.
Rb6 {[%clk 0:00:27.5]} 1-0

[Event "*** Titled Tuesday Blitz"]
[Site "Chess.com"]
[Date "2020.04.07"]
[Round "2"]
[White "Harut-1998"]
[Black "Opening_Prep"]
[Result "1-0"]
[WhiteElo "2653"]
[BlackElo "2281"]
[TimeControl "180+1"]
[EndTime "13:19:53 PDT"]
[Termination "Harut-1998 won by resignation"]

1. d4 {[%clk 0:03:00.9]} 1... f5 {[%clk 0:02:58.2]} 2. Nc3 {[%clk 0:03:00]} 2...
Nf6 {[%clk 0:02:57.8]} 3. Bg5 {[%clk 0:02:56.1]} 3... d5 {[%clk 0:02:56.8]} 4.
Bxf6 {[%clk 0:02:55.9]} 4... exf6 {[%clk 0:02:56.5]} 5. e3 {[%clk 0:02:55.8]}
5... Be6 {[%clk 0:02:54.2]} 6. Bd3 {[%clk 0:02:53.7]} 6... Nc6 {[%clk 0:02:52]}
7. Qf3 {[%clk 0:02:50.8]} 7... Qd7 {[%clk 0:02:50.1]} 8. a3 {[%clk 0:02:50.3]}
8... O-O-O {[%clk 0:02:46.3]} 9. Nge2 {[%clk 0:02:49.3]} 9... g6 {[%clk
0:02:42.2]} 10. O-O-O {[%clk 0:02:42.3]} 10... Kb8 {[%clk 0:02:34.5]} 11. h3
{[%clk 0:02:35.2]} 11... a6 {[%clk 0:02:34.2]} 12. Nf4 {[%clk 0:02:31.7]} 12...
Bf7 {[%clk 0:02:08.5]} 13. g4 {[%clk 0:02:29]} 13... fxg4 {[%clk 0:02:04.9]} 14.
hxg4 {[%clk 0:02:28.5]} 14... Be7 {[%clk 0:01:58.6]} 15. Rh6 {[%clk 0:02:22.9]}
15... Bf8 {[%clk 0:01:29.5]} 16. Rh3 {[%clk 0:02:12]} 16... Bg7 {[%clk
0:01:21.4]} 17. Rdh1 {[%clk 0:02:10.2]} 17... h5 {[%clk 0:01:09.4]} 18. Qg2
{[%clk 0:01:31.4]} 18... Qxg4 {[%clk 0:00:59.4]} 19. Qxg4 {[%clk 0:01:29.6]}
19... hxg4 {[%clk 0:00:59.3]} 20. Rxh8 {[%clk 0:01:29.6]} 20... Rxh8 {[%clk
0:00:58.4]} 21. Rxh8+ {[%clk 0:01:27.8]} 21... Bxh8 {[%clk 0:00:59.3]} 22. Bxg6
{[%clk 0:01:20]} 22... Bg8 {[%clk 0:00:49.1]} 23. Ncxd5 {[%clk 0:01:14.7]} 23...
Bg7 {[%clk 0:00:36.3]} 24. Bf5 {[%clk 0:01:12.5]} 24... g3 {[%clk 0:00:32.8]}
25. fxg3 {[%clk 0:01:11.2]} 25... Nd8 {[%clk 0:00:32.4]} 26. Kd2 {[%clk
0:01:01.2]} 26... c6 {[%clk 0:00:32.5]} 27. Ne7 {[%clk 0:01:00.3]} 27... Bf7
{[%clk 0:00:32.2]} 28. Bg6 {[%clk 0:00:58.3]} 28... Be6 {[%clk 0:00:28.1]} 29.
Nf5 {[%clk 0:00:50.3]} 29... Bxf5 {[%clk 0:00:24.6]} 30. Bxf5 {[%clk 0:00:49.9]}
30... Nf7 {[%clk 0:00:23]} 31. Nh5 {[%clk 0:00:49.4]} 31... Bh8 {[%clk
0:00:20.9]} 32. g4 {[%clk 0:00:49]} 32... Kc7 {[%clk 0:00:21.1]} 33. e4 {[%clk
0:00:47.7]} 33... Kd6 {[%clk 0:00:21.3]} 34. Kd3 {[%clk 0:00:46.2]} 34... b6
{[%clk 0:00:21.6]} 35. c4 {[%clk 0:00:43]} 35... Ng5 {[%clk 0:00:21.5]} 36. Ke3
{[%clk 0:00:40.9]} 36... c5 {[%clk 0:00:21.5]} 37. d5 {[%clk 0:00:36.1]} 37...
a5 {[%clk 0:00:18]} 38. b3 {[%clk 0:00:35.7]} 38... Nf7 {[%clk 0:00:17.2]} 39.
Kd3 {[%clk 0:00:16.3]} 39... Ne5+ {[%clk 0:00:17.2]} 40. Kc3 {[%clk 0:00:16.5]}
40... Nf3 {[%clk 0:00:16]} 41. b4 {[%clk 0:00:16.2]} 41... axb4+ {[%clk
0:00:15.7]} 42. axb4 {[%clk 0:00:17.1]} 42... Ne5 {[%clk 0:00:13.9]} 43. Kb3
{[%clk 0:00:16.9]} 43... Nd3 {[%clk 0:00:13.5]} 44. bxc5+ {[%clk 0:00:16.9]}
44... Kxc5 {[%clk 0:00:13.6]} 45. Kc3 {[%clk 0:00:16.2]} 45... Ne5 {[%clk
0:00:13.9]} 46. Nf4 {[%clk 0:00:07.7]} 46... Nxc4 {[%clk 0:00:11.1]} 47. Ne6+
{[%clk 0:00:07.8]} 47... Kb5 {[%clk 0:00:11.6]} 48. Nc7+ {[%clk 0:00:07.6]}
48... Kc5 {[%clk 0:00:11.5]} 49. Ne6+ {[%clk 0:00:07.6]} 49... Kb5 {[%clk
0:00:11.9]} 50. Nd4+ {[%clk 0:00:07.9]} 50... Kc5 {[%clk 0:00:12.2]} 51. Nb3+
{[%clk 0:00:08.2]} 51... Kb5 {[%clk 0:00:12.7]} 52. Bd7+ {[%clk 0:00:08.3]}
52... Ka6 {[%clk 0:00:04.9]} 53. Kxc4 {[%clk 0:00:08.7]} 1-0